bitfinex/quotes_BTCUSD_20240918
["timestamp","ask_amount","ask_price","bid_price","bid_amount"]
[1726681285268,0.005,60026.0,60023.0,0.196322]
[1726681285650,0.166591,60027.0,60023.0,0.196322]
[1726681286087,0.166591,60027.0,60024.0,0.001]
[1726681286265,0.1,60029.0,60026.0,0.166592]
[1726681286718,0.1,60029.0,60027.0,0.166591]
[1726681286907,0.1,60029.0,60028.0,0.166588]
[1726681287315,0.0753,60033.0,60031.0,0.166579]
[1726681287520,0.166584,60030.0,60028.0,0.03]
[1726681287729,0.40845,60033.0,60028.0,0.03]
[1726681287930,0.166582,60031.0,60028.0,0.03]
[1726681288818,0.00082,60029.0,60028.0,0.196588]
[1726681288999,0.00082,60029.0,60028.0,0.529765]
[1726681289203,0.00082,60029.0,60028.0,0.031]
[1726681289406,0.00082,60029.0,60028.0,0.196588]
[1726681289820,0.00082,60029.0,60028.0,0.197588]
[1726681290026,0.00082,60029.0,60028.0,0.196588]
[1726681290231,0.00082,60029.0,60028.0,1.255839]
[1726681290440,0.00082,60029.0,60028.0,1.589016]
[1726681290441,0.00282,60029.0,60028.0,1.589016]
[1726681290862,0.00282,60029.0,60028.0,1.59066413]
[1726681290994,0.00282,60029.0,60028.0,1.25748713]
[1726681292146,0.00082,60029.0,60028.0,1.25748713]
[1726681292517,0.00082,60029.0,60028.0,1.26748713]
[1726681293192,0.00082,60029.0,60028.0,0.932662]
[1726681293408,0.00082,60029.0,60028.0,0.266308]
[1726681293613,0.00082,60029.0,60028.0,0.599485]
[1726681293845,0.00082,60029.0,60028.0,0.09972]
[1726681294061,0.23147533,60029.0,60028.0,0.03972]
[1726681294273,0.23147533,60029.0,60028.0,0.07]
[1726681294491,0.23147533,60029.0,60028.0,0.01]
[1726681294715,0.39806133,60029.0,60028.0,0.01]
[1726681295143,0.23147533,60029.0,60028.0,0.01]
[1726681295787,0.23147533,60029.0,60027.0,0.25631]
[1726681295788,0.166588,60028.0,60027.0,0.02972]
[1726681296290,0.23347533,60029.0,60027.0,0.08972]
[1726681296505,0.23147533,60029.0,60028.0,0.03]
[1726681296751,0.23647533,60029.0,60028.0,0.03]
[1726681297174,0.23147533,60029.0,60028.0,0.03]
[1726681297379,0.39806133,60029.0,60028.0,0.03]
[1726681297823,0.166591,60027.0,60026.0,0.02972]
[1726681298075,0.166592,60027.0,60024.0,0.166599]
[1726681298489,0.166592,60027.0,60023.0,0.196321]
[1726681298697,0.166595,60026.0,60024.0,0.03]
[1726681299360,0.333183,60027.0,60023.0,0.02972]
[1726681299566,0.166598,60025.0,60023.0,0.08972]
[1726681299794,0.333216,60021.0,60018.0,0.02972]
[1726681300042,0.393709,60024.0,60018.0,0.02972]
[1726681300043,0.1538662,60019.0,60018.0,0.02972]
[1726681300259,0.1538662,60019.0,60018.0,0.08972]
[1726681301595,0.1538662,60019.0,60018.0,0.256336]
[1726681301801,0.1538662,60019.0,60018.0,0.08972]
[1726681302222,0.003,60021.0,60018.0,0.08972]
[1726681302430,0.3204582,60027.0,60020.0,0.422942]
[1726681302637,0.24988131,60025.0,60024.0,0.166599]
[1726681302846,0.05130703,60025.0,60023.0,0.166602]
[1726681304150,0.05530703,60025.0,60022.0,0.166604]
[1726681304350,0.05130703,60024.0,60021.0,0.06]
[1726681304554,0.05130703,60024.0,60022.0,0.166604]
[1726681304975,0.05130703,60024.0,60023.0,0.166602]
[1726681305643,0.05130703,60024.0,60023.0,0.499807]
[1726681305860,0.23154973,60029.0,60023.0,0.362925]
[1726681305861,0.05130703,60028.0,60023.0,0.362925]
[1726681306075,0.05130848,60027.0,60024.0,0.166599]
[1726681306279,0.166594,60026.0,60023.0,0.196322]
[1726681306496,0.05130848,60025.0,60023.0,0.196322]
[1726681306707,0.003,60024.0,60023.0,0.196322]
[1726681306920,0.05130848,60024.0,60023.0,0.196322]
[1726681307136,0.05130848,60024.0,60023.0,0.02972]
[1726681307343,0.05130848,60024.0,60023.0,0.197322]
[1726681307555,0.05130848,60025.0,60023.0,0.196322]
[1726681308295,0.05130848,60025.0,60024.0,0.1666]
[1726681308533,0.05130848,60026.0,60024.0,0.1666]
[1726681309009,0.003,60025.0,60024.0,0.1666]
[1726681309253,0.05130848,60025.0,60023.0,0.196322]
[1726681309708,0.003,60025.0,60024.0,0.1666]
[1726681309934,0.05431218,60025.0,60024.0,0.58952]
[1726681310133,0.05431218,60025.0,60024.0,0.92272]
[1726681310134,0.003,60025.0,60024.0,0.92272]
[1726681310369,0.00082,60029.0,60028.0,0.559765]
[1726681310589,0.00082,60029.0,60028.0,0.922662]
[1726681310795,0.00082,60029.0,60028.0,0.256308]
[1726681311013,0.00082,60029.0,60028.0,0.589485]
[1726681312135,0.05212818,60029.0,60028.0,0.589485]
[1726681313588,0.05412818,60029.0,60028.0,0.589485]
[1726681314987,0.05412818,60029.0,60028.0,0.256308]
[1726681317683,0.05412818,60029.0,60028.0,0.589485]
[1726681318836,0.05412818,60029.0,60028.0,0.256308]
[1726681319318,0.05412818,60029.0,60028.0,0.589485]
[1726681320355,0.00282,60029.0,60028.0,0.589485]
[1726681320615,0.05413316,60029.0,60028.0,0.59113313]
[1726681320871,0.00282,60029.0,60028.0,0.59113313]
[1726681321102,0.00282,60029.0,60028.0,0.256308]
[1726681321579,0.00282,60029.0,60028.0,0.589485]
[1726681322570,0.00282,60029.0,60028.0,0.92431013]
[1726681322823,0.00282,60029.0,60028.0,0.589485]
[1726681323068,0.05413337,60029.0,60028.0,0.589485]
[1726681323591,0.05413337,60029.0,60028.0,0.256308]
[1726681324072,0.2848631,60029.0,60027.0,0.03159353]
[1726681324316,0.05131337,60028.0,60027.0,0.03159353]
[1726681324567,0.05131337,60028.0,60027.0,0.09159353]
[1726681325038,0.21790137,60028.0,60027.0,0.03159353]
[1726681325527,0.05131337,60028.0,60027.0,0.03159353]
[1726681325755,0.05131337,60028.0,60027.0,0.59136753]
[1726681326251,0.05131337,60028.0,60027.0,0.92455053]
[1726681326506,0.00282,60029.0,60028.0,0.892662]
[1726681326749,0.00230986,60029.0,60028.0,0.922662]
[1726681327015,0.00030986,60029.0,60028.0,0.922662]
[1726681327222,0.00030986,60029.0,60028.0,1.25748713]
[1726681327425,0.00030986,60029.0,60028.0,1.25912713]
[1726681327839,0.00030986,60029.0,60028.0,1.26512713]
[1726681328688,0.00030986,60029.0,60028.0,1.7613578]
[1726681328914,0.00030986,60029.0,60028.0,1.9379578]
[1726681329337,0.00030986,60029.0,60028.0,2.01290991]
[1726681329575,0.00030986,60029.0,60028.0,1.98789418]
[1726681329792,0.00030986,60029.0,60028.0,1.9379578]
[1726681330017,0.00030986,60029.0,60028.0,1.9478835]
[1726681330233,0.00030986,60029.0,60028.0,2.12183561]
[1726681330648,0.00030986,60029.0,60028.0,2.09680447]
[1726681331096,0.00030986,60029.0,60028.0,2.08687877]
[1726681331313,0.00030986,60029.0,60028.0,4.28687877]
[1726681331545,0.00030986,60029.0,60028.0,4.2369578]
[1726681332212,0.00030986,60029.0,60028.0,4.2309578]
[1726681332442,0.00130986,60029.0,60028.0,4.29387877]
[1726681332656,0.00130986,60029.0,60028.0,4.2439578]
[1726681339072,0.00130986,60029.0,60028.0,4.2739578]
[1726681339292,0.0056238,60034.0,60033.0,1.02996443]
[1726681339521,0.0056238,60034.0,60033.0,1.73518372]
[1726681339745,0.0056238,60034.0,60033.0,2.75955512]
[1726681339964,0.0056238,60034.0,60033.0,3.09270512]
[1726681340418,0.0056238,60034.0,60033.0,3.05727512]
[1726681340640,0.0056238,60034.0,60033.0,3.03225054]
[1726681340857,0.0056238,60034.0,60033.0,3.04625054]
[1726681341062,0.0056238,60034.0,60033.0,3.03225054]
[1726681341538,0.0056238,60034.0,60033.0,3.04625054]
[1726681341744,0.0056238,60034.0,60033.0,2.94248422]
[1726681342169,0.0056238,60034.0,60033.0,2.95648422]
[1726681342382,0.0056238,60034.0,60033.0,2.95848422]
[1726681342651,0.0056238,60034.0,60033.0,3.03310023]
[1726681343558,0.0056238,60034.0,60033.0,2.95848422]
[1726681343789,0.0006238,60034.0,60033.0,2.94448422]
[1726681344005,0.0006238,60034.0,60033.0,3.03310023]
[1726681344448,0.0006238,60034.0,60033.0,2.95648422]
[1726681344666,0.0006238,60034.0,60033.0,2.69792116]
[1726681344878,0.0006238,60034.0,60033.0,2.62333422]
[1726681345097,0.0006238,60034.0,60033.0,2.69792116]
[1726681345310,0.0006238,60034.0,60033.0,2.69992116]
[1726681345522,0.0006238,60034.0,60033.0,2.62533422]
[1726681346765,0.0006238,60034.0,60033.0,2.67504163]
[1726681347531,0.0006238,60034.0,60033.0,2.67304163]
[1726681347828,0.0006238,60034.0,60033.0,2.67504163]
[1726681348715,0.0006238,60034.0,60033.0,2.62533422]
[1726681349172,0.0006238,60034.0,60033.0,2.67504163]
[1726681349617,0.0006238,60034.0,60033.0,2.62533422]
[1726681352652,0.0014438,60034.0,60033.0,2.62533422]
[1726681353599,0.0014438,60034.0,60033.0,2.675037]
[1726681354263,0.0014438,60034.0,60033.0,2.62533422]
[1726681354476,0.0014438,60034.0,60033.0,2.675037]
[1726681355212,0.0014438,60034.0,60033.0,2.673037]
[1726681355600,0.0014438,60034.0,60033.0,2.62333422]
[1726681356044,0.0014438,60034.0,60033.0,2.95648422]
[1726681356263,0.0014438,60034.0,60033.0,2.62533422]
[1726681357095,0.0014438,60034.0,60033.0,2.75816665]
[1726681357435,8e-07,60035.0,60034.0,1.13922813]
[1726681357635,8e-07,60035.0,60034.0,1.3022818]
[1726681357840,8e-07,60035.0,60034.0,2.0019998]
[1726681358064,8e-07,60039.0,60038.0,1.75479643]
[1726681358268,8e-07,60039.0,60038.0,2.9172161]
[1726681358474,8e-07,60039.0,60038.0,3.01657156]
[1726681358686,8e-07,60039.0,60038.0,2.9172161]
[1726681359099,8e-07,60039.0,60038.0,3.01657156]
[1726681359297,8e-07,60039.0,60038.0,3.04141043]
[1726681359503,8e-07,60039.0,60038.0,2.9172161]
[1726681359703,8e-07,60039.0,60038.0,3.04141043]
[1726681360379,8e-07,60039.0,60038.0,2.9172161]
[1726681360590,8e-07,60039.0,60038.0,2.9312161]
[1726681360797,8e-07,60039.0,60038.0,3.05541043]
[1726681361235,8e-07,60039.0,60038.0,3.05540971]
[1726681361652,8e-07,60039.0,60038.0,2.9312161]
[1726681361928,8e-07,60039.0,60038.0,3.05540971]
[1726681362353,8e-07,60039.0,60038.0,2.9312161]
[1726681362567,8e-07,60039.0,60038.0,3.05540971]
[1726681362775,8e-07,60039.0,60038.0,2.9312161]
[1726681362991,8e-07,60039.0,60038.0,3.05540971]
[1726681363702,8e-07,60039.0,60038.0,3.23130971]
[1726681363902,8e-07,60039.0,60038.0,2.9312161]
[1726681364103,8e-07,60039.0,60038.0,3.0305903]
[1726681364474,8e-07,60039.0,60038.0,3.05540971]
[1726681364671,8e-07,60039.0,60038.0,3.03061838]
[1726681364912,8e-07,60039.0,60038.0,3.05540971]
[1726681365112,8e-07,60039.0,60038.0,2.9312161]
[1726681365281,8e-07,60039.0,60038.0,3.05540971]
[1726681365683,8e-07,60039.0,60038.0,2.9312161]
[1726681365889,8e-07,60039.0,60038.0,3.05547303]
[1726681366896,8e-07,60039.0,60038.0,2.9312161]
[1726681369312,8e-07,60039.0,60038.0,2.9292161]
[1726681369519,8e-07,60039.0,60038.0,3.05348944]
[1726681369751,8e-07,60039.0,60038.0,2.9292161]
[1726681372337,8e-07,60039.0,60038.0,2.9312161]
[1726681373778,8e-07,60039.0,60038.0,3.08032442]
[1726681373984,8e-07,60039.0,60038.0,2.9312161]
[1726681374581,8e-07,60039.0,60038.0,3.08032442]
[1726681375491,8e-07,60039.0,60038.0,3.08056395]
[1726681376418,8e-07,60039.0,60038.0,2.94983395]
[1726681378137,8e-07,60039.0,60038.0,2.95183395]
[1726681378556,8e-07,60039.0,60038.0,2.92683395]
[1726681378776,8e-07,60039.0,60038.0,2.7774861]
[1726681379698,8e-07,60039.0,60038.0,2.8129161]
[1726681381142,8e-07,60039.0,60038.0,2.8359161]
[1726681381980,8e-07,60039.0,60038.0,3.21461896]
[1726681382196,8e-07,60039.0,60038.0,2.8359161]
[1726681382659,8e-07,60039.0,60038.0,3.21461896]
[1726681383319,8e-07,60039.0,60038.0,2.8359161]
[1726681383564,8e-07,60039.0,60038.0,3.15618896]
[1726681384190,8e-07,60039.0,60038.0,3.15818896]
[1726681385090,8e-07,60039.0,60038.0,3.37910045]
[1726681385769,8e-07,60039.0,60038.0,3.37710045]
[1726681386021,8e-07,60039.0,60038.0,2.23617366]
[1726681386521,8e-07,60039.0,60038.0,2.23817366]
[1726681386756,8e-07,60039.0,60038.0,2.56929566]
[1726681386965,8e-07,60039.0,60038.0,2.23617366]
[1726681387180,8e-07,60039.0,60038.0,1.8574708]
[1726681387420,8e-07,60039.0,60038.0,2.37278711]
[1726681387633,8e-07,60039.0,60038.0,2.22470753]
[1726681388077,8e-07,60039.0,60038.0,1.54680007]
[1726681388293,8e-07,60039.0,60038.0,1.02402059]
[1726681388509,8e-07,60039.0,60038.0,0.97409028]
[1726681388767,8e-07,60039.0,60038.0,1.30721228]
[1726681389043,8e-07,60039.0,60038.0,1.32121302]
[1726681389299,8e-07,60039.0,60038.0,1.47026669]
[1726681389553,8e-07,60039.0,60038.0,1.42634267]
[1726681389808,8e-07,60039.0,60038.0,1.5528154]
[1726681390068,8e-07,60039.0,60038.0,1.4219908]
[1726681390377,8e-07,60039.0,60038.0,1.4289908]
[1726681390562,8e-07,60039.0,60038.0,1.4219908]
[1726681390775,8e-07,60039.0,60038.0,1.52183957]
[1726681391590,8e-07,60039.0,60038.0,1.4219908]
[1726681392004,8e-07,60039.0,60038.0,1.4359908]
[1726681392209,8e-07,60039.0,60038.0,1.4219908]
[1726681392419,8e-07,60039.0,60038.0,1.49687728]
[1726681392647,8e-07,60039.0,60038.0,1.50787728]
[1726681393063,8e-07,60039.0,60038.0,1.4329908]
[1726681393286,8e-07,60039.0,60038.0,1.50787231]
[1726681393947,8e-07,60039.0,60038.0,1.49687231]
[1726681394371,8e-07,60039.0,60038.0,1.47191443]
[1726681396192,8e-07,60039.0,60038.0,1.48591443]
[1726681396691,8e-07,60039.0,60038.0,1.4359908]
[1726681396894,8e-07,60039.0,60038.0,1.4219908]
[1726681397928,8e-07,60039.0,60038.0,1.82999431]
[1726681398154,8e-07,60039.0,60038.0,1.8851128]
[1726681398361,8e-07,60039.0,60038.0,1.98495832]
[1726681398807,8e-07,60039.0,60038.0,1.99595832]
[1726681399459,8e-07,60039.0,60038.0,1.96595832]
[1726681399671,8e-07,60039.0,60038.0,1.8661128]
[1726681400403,8e-07,60039.0,60038.0,1.96586412]
[1726681400629,8e-07,60039.0,60038.0,1.95486412]
[1726681400838,8e-07,60039.0,60038.0,1.8551128]
[1726681401238,8e-07,60039.0,60038.0,1.8641128]
[1726681401515,8e-07,60039.0,60038.0,1.31617263]
[1726681401768,8e-07,60039.0,60038.0,0.933167]
[1726681402202,8e-07,60039.0,60038.0,0.266923]
[1726681402416,0.0750008,60039.0,60038.0,0.266923]
[1726681402641,0.0750008,60039.0,60038.0,0.600045]
[1726681403275,0.2415588,60039.0,60038.0,0.061642]
[1726681403489,0.0750008,60039.0,60038.0,0.031642]
[1726681403705,0.0750008,60039.0,60038.0,0.032642]
[1726681404390,0.0750008,60039.0,60038.0,0.001642]
[1726681404603,0.0750008,60039.0,60038.0,0.031642]
[1726681404786,0.0750008,60039.0,60038.0,0.924167]
[1726681405033,0.0750008,60039.0,60038.0,1.257289]
[1726681405464,8e-07,60039.0,60038.0,1.257289]
[1726681406343,8e-07,60039.0,60038.0,1.25893713]
[1726681407075,8e-07,60039.0,60038.0,1.4219908]
[1726681407505,8e-07,60039.0,60038.0,1.7551128]
[1726681407721,8e-07,60039.0,60038.0,1.7621128]
[1726681408818,8e-07,60039.0,60038.0,1.8621128]
[1726681410963,8e-07,60039.0,60038.0,1.8551128]
[1726681411391,8e-07,60039.0,60038.0,1.8641128]
[1726681411621,8e-07,60039.0,60038.0,1.8551128]
[1726681412053,8e-07,60039.0,60038.0,1.8651128]
[1726681415125,8e-07,60039.0,60038.0,1.91496777]
[1726681415625,8e-07,60039.0,60038.0,2.2302348]
[1726681415887,8e-07,60039.0,60038.0,2.32994475]
[1726681416387,8e-07,60039.0,60038.0,2.35487224]
[1726681416644,8e-07,60039.0,60038.0,2.2902348]
[1726681416891,8e-07,60039.0,60038.0,2.6233568]
[1726681417550,8e-07,60039.0,60038.0,2.6463568]
[1726681418205,8e-07,60039.0,60038.0,2.6603568]
[1726681418640,8e-07,60039.0,60038.0,3.24184209]
[1726681418856,0.000821,60048.0,60047.0,1.93596343]
[1726681419079,0.000721,60048.0,60047.0,2.5815964]
[1726681419394,0.000621,60048.0,60047.0,3.0630984]
[1726681419445,0.000621,60048.0,60047.0,2.9135911]
[1726681419694,8e-07,60052.0,60051.0,2.34819313]
[1726681419907,8e-07,60054.0,60053.0,0.95969743]
[1726681420083,0.0038831,60058.0,60057.0,1.11590813]
[1726681420239,0.0038831,60058.0,60057.0,1.7657491]
[1726681420448,0.0038831,60058.0,60057.0,2.8860971]
[1726681422290,0.0038831,60058.0,60057.0,2.9000971]
[1726681422947,0.0038831,60058.0,60057.0,2.8980971]
[1726681423471,0.0038831,60058.0,60057.0,3.03429937]
[1726681424150,0.0038831,60058.0,60057.0,2.57798337]
[1726681424366,0.0038831,60058.0,60057.0,2.55312815]
[1726681424589,0.0038831,60058.0,60057.0,2.55310343]
[1726681425015,0.0038831,60058.0,60057.0,2.55510343]
[1726681425438,0.0038831,60058.0,60057.0,2.55508406]
[1726681426103,0.0038831,60058.0,60057.0,2.47869199]
[1726681426339,0.0038831,60058.0,60057.0,2.93596017]
[1726681426526,0.0038831,60058.0,60057.0,2.47869199]
[1726681427203,0.0038831,60058.0,60057.0,2.57806628]
[1726681427424,0.0038831,60058.0,60057.0,2.5780516]
[1726681428052,0.0038831,60058.0,60057.0,2.9110676]
[1726681428499,0.0038831,60058.0,60057.0,2.81170799]
[1726681429620,0.0038831,60058.0,60057.0,2.88616176]
[1726681430663,1e-07,60058.0,60057.0,2.88616176]
[1726681430848,1e-07,60058.0,60057.0,2.88614251]
[1726681431589,0.0001001,60059.0,60058.0,0.47287313]
[1726681431805,0.0001001,60059.0,60058.0,0.99355025]
[1726681432013,0.0001001,60059.0,60058.0,1.2769488]
[1726681432244,0.0001001,60059.0,60058.0,1.9429708]
[1726681432453,0.0001001,60059.0,60058.0,2.2759818]
[1726681432883,0.0001001,60059.0,60058.0,2.2779818]
[1726681433343,0.0001001,60059.0,60058.0,2.3009818]
[1726681433567,0.0001001,60059.0,60058.0,2.37536164]
[1726681433997,0.0001001,60059.0,60058.0,2.72237149]
[1726681434694,0.0001001,60059.0,60058.0,2.6479928]
[1726681435140,0.0001001,60059.0,60058.0,2.72236001]
[1726681435356,0.0001001,60059.0,60058.0,2.81846001]
[1726681435357,1e-07,60059.0,60058.0,2.81846001]
[1726681435561,1e-07,60059.0,60058.0,2.7440928]
[1726681436537,1e-07,60059.0,60058.0,2.81846221]
[1726681437800,0.25388592,60070.0,60069.0,0.35784313]
[1726681438018,0.25388592,60070.0,60069.0,0.8538468]
[1726681438370,0.0039838,60070.0,60069.0,0.8538468]
[1726681438805,0.0039838,60070.0,60069.0,1.5197468]
[1726681439003,0.0039838,60070.0,60069.0,1.8526968]
[1726681439174,0.0039838,60070.0,60069.0,2.20850108]
[1726681439835,0.0039838,60070.0,60069.0,1.87555108]
[1726681440407,0.0039838,60070.0,60069.0,2.20850108]
[1726681441197,0.0039838,60070.0,60069.0,2.63145108]
[1726681441403,8e-07,60070.0,60069.0,2.80705108]
[1726681441616,0.000821,60076.0,60069.0,2.80705108]
[1726681441617,0.000821,60077.0,60076.0,0.47082313]
[1726681441827,0.25072212,60083.0,60078.0,0.80571813]
[1726681442040,0.25072212,60083.0,60078.0,1.3016718]
[1726681442252,0.00082,60083.0,60078.0,1.68405424]
[1726681442462,1e-06,60079.0,60078.0,2.37464398]
[1726681443082,1e-06,60079.0,60078.0,2.6332718]
[1726681443292,1e-06,60079.0,60078.0,2.6472718]
[1726681443493,1e-06,60079.0,60078.0,2.74630137]
[1726681444980,1e-06,60079.0,60078.0,2.77115319]
[1726681445184,1e-06,60083.0,60082.0,2.56027513]
[1726681445394,1e-06,60083.0,60082.0,3.03408931]
[1726681445603,1e-06,60083.0,60082.0,2.9105301]
[1726681446531,1e-06,60083.0,60082.0,2.9245301]
[1726681446741,1e-06,60083.0,60082.0,2.9105301]
[1726681447152,1e-06,60083.0,60082.0,2.9245301]
[1726681447358,0.000721,60088.0,60087.0,2.26781443]
[1726681447581,0.000721,60088.0,60087.0,2.52791261]
[1726681448317,0.000721,60088.0,60087.0,2.4538681]
[1726681448739,0.000721,60088.0,60087.0,2.4678681]
[1726681449150,0.000721,60088.0,60087.0,2.4658681]
[1726681449387,0.000721,60088.0,60087.0,2.56458609]
[1726681449622,0.1766,60104.0,60093.0,0.69059313]
[1726681449904,0.1766,60104.0,60093.0,1.5192808]
[1726681451285,0.1766,60104.0,60093.0,2.1849148]
[1726681452012,0.1766,60104.0,60093.0,2.1989148]
[1726681452494,0.1766,60104.0,60093.0,2.24828408]
[1726681452717,0.1766,60104.0,60093.0,2.23428408]
[1726681453188,0.1766,60104.0,60093.0,2.24406362]
[1726681453735,0.1766,60104.0,60093.0,2.25806362]
[1726681454146,0.1766,60104.0,60093.0,2.20869434]
[1726681454353,0.1766,60104.0,60093.0,2.28274826]
[1726681455063,0.1766,60104.0,60093.0,2.26710013]
[1726681455242,0.1766,60104.0,60093.0,2.26874826]
[1726681455468,0.1766,60104.0,60093.0,2.28274826]
[1726681455683,0.1766,60104.0,60093.0,1.8660978]
[1726681455902,0.1766,60104.0,60093.0,1.7660978]
[1726681458148,0.1766,60104.0,60093.0,1.43163267]
[1726681458356,0.1766,60104.0,60093.0,1.41763267]
[1726681458560,0.1766,60104.0,60093.0,1.76444967]
[1726681458962,0.1766,60104.0,60093.0,1.75044967]
[1726681459183,0.1766,60104.0,60093.0,1.76244967]
[1726681459618,0.1766,60104.0,60093.0,1.7520978]
[1726681459776,0.1766,60104.0,60093.0,1.7570978]
[1726681459986,0.0039823,60094.0,60093.0,1.80652376]
[1726681460161,0.0039823,60094.0,60093.0,1.80152376]
[1726681460364,0.0039823,60094.0,60093.0,1.7520978]
[1726681461330,0.0039823,60094.0,60093.0,1.82636499]
[1726681461542,0.0039823,60094.0,60093.0,1.85081579]
[1726681461754,0.0039823,60094.0,60093.0,1.86281579]
[1726681462591,0.0039823,60094.0,60093.0,1.7520978]
[1726681462799,0.0039823,60094.0,60093.0,1.87598468]
[1726681463020,0.0039823,60094.0,60093.0,1.85120779]
[1726681463464,0.0039823,60094.0,60093.0,1.7520978]
[1726681463678,0.0039823,60094.0,60093.0,1.87598468]
[1726681464543,0.0039823,60094.0,60093.0,1.7520978]
[1726681464747,0.0039823,60094.0,60093.0,1.7660978]
[1726681465844,0.0039823,60094.0,60093.0,1.89008921]
[1726681466065,0.0039823,60094.0,60093.0,1.87608921]
[1726681466720,0.0039823,60094.0,60093.0,1.89008921]
[1726681466928,0.0039823,60094.0,60093.0,1.7660978]
[1726681467566,0.0039823,60094.0,60093.0,1.7520978]
[1726681468003,0.0039823,60094.0,60093.0,1.7660978]
[1726681468687,0.0039823,60094.0,60093.0,2.1989148]
[1726681469280,0.0039823,60094.0,60093.0,2.1849148]
[1726681469489,0.24990212,60102.0,60094.0,1.02339513]
[1726681469717,0.24990212,60102.0,60094.0,1.1864488]
[1726681469993,0.24990212,60102.0,60094.0,2.1848818]
[1726681470630,0.24990212,60102.0,60094.0,1.8520708]
[1726681470879,0.24990212,60102.0,60094.0,1.99003298]
[1726681471502,0.24990212,60102.0,60094.0,1.8660708]
[1726681471918,0.24990212,60102.0,60094.0,1.96525654]
[1726681472121,0.0039838,60107.0,60094.0,1.96525654]
[1726681472337,0.24990212,60106.0,60094.0,2.0198421]
[1726681473171,0.24990212,60106.0,60094.0,1.8660708]
[1726681473576,0.24990212,60106.0,60094.0,1.8520708]
[1726681473985,0.24990212,60106.0,60094.0,1.8660708]
[1726681474189,0.24990212,60106.0,60094.0,1.9652368]
[1726681474394,0.24990212,60106.0,60094.0,1.96523211]
[1726681475249,0.24990212,60106.0,60094.0,1.8660708]
[1726681475458,0.24990212,60106.0,60094.0,2.52034712]
[1726681475664,0.24990212,60106.0,60094.0,2.4479531]
[1726681476078,0.24990212,60106.0,60094.0,2.54711441]
[1726681476283,0.24990212,60106.0,60094.0,2.53111441]
[1726681476564,0.24990212,60106.0,60094.0,2.4459531]
[1726681476771,0.24990212,60106.0,60094.0,2.1131421]
[1726681476977,0.24990212,60106.0,60094.0,2.21230341]
[1726681477181,0.24990212,60106.0,60094.0,2.0198421]
[1726681477389,0.24990212,60106.0,60094.0,1.8660708]
[1726681477600,0.34050212,60106.0,60094.0,2.27328437]
[1726681477801,0.34050212,60106.0,60094.0,1.94047337]
[1726681478215,0.34050212,60106.0,60094.0,2.27328437]
[1726681478421,0.34050212,60106.0,60094.0,1.94047337]
[1726681479472,0.34050212,60106.0,60094.0,1.96523211]
[1726681479672,0.24990212,60106.0,60094.0,2.29804311]
[1726681479880,0.24990212,60106.0,60094.0,1.8660708]
[1726681480316,0.24990212,60106.0,60094.0,2.1988818]
[1726681480521,0.24990212,60106.0,60094.0,2.5846928]
[1726681480522,1e-06,60095.0,60094.0,2.5846928]
[1726681480768,1e-06,60095.0,60094.0,2.2852518]
[1726681481414,1e-06,60095.0,60094.0,0.014]
[1726681481415,0.49921,60095.0,60094.0,0.014]
[1726681481632,0.6509114,60095.0,60089.0,0.001642]
[1726681481848,0.166447,60079.0,60078.0,0.25154412]
[1726681482055,0.3202183,60079.0,60078.0,0.001642]
[1726681482744,0.3142713,60079.0,60078.0,0.001642]
[1726681483783,0.3142713,60079.0,60078.0,0.002642]
[1726681484033,0.3142713,60079.0,60078.0,0.001642]
[1726681486208,0.1705,60079.0,60078.0,0.002642]
[1726681486452,0.1705,60079.0,60078.0,0.001642]
[1726681486453,0.1605,60079.0,60078.0,0.001642]
[1726681486731,0.0998,60088.0,60086.0,0.08972]
[1726681486954,0.24967334,60087.0,60086.0,0.08972]
[1726681487196,0.0998,60088.0,60086.0,0.08972]
[1726681487458,0.0998,60088.0,60087.0,0.08972]
[1726681489460,0.1078,60088.0,60087.0,0.08972]
[1726681489718,0.0803,60091.0,60087.0,0.08972]
[1726681489967,0.0803,60091.0,60084.0,0.332862]
[1726681489968,0.0803,60091.0,60088.0,0.08972]
[1726681491463,0.0803,60091.0,60088.0,0.09072]
[1726681491464,0.166419,60089.0,60088.0,0.09072]
[1726681491729,0.332835,60090.0,60088.0,0.09072]
[1726681491730,0.166418,60090.0,60088.0,0.09072]
[1726681492469,0.166419,60089.0,60088.0,0.09072]
[1726681492937,0.166419,60089.0,60088.0,0.08972]
[1726681493375,0.499258,60089.0,60088.0,0.08972]
[1726681493799,0.003,60089.0,60088.0,0.08972]
[1726681494005,0.502258,60089.0,60088.0,3.08972]
[1726681494415,0.835097,60089.0,60088.0,3.08972]
[1726681494621,0.502258,60089.0,60088.0,3.08972]
[1726681495473,0.835097,60089.0,60088.0,3.0]
[1726681495687,0.9888683,60089.0,60088.0,3.03]
[1726681497267,0.1567713,60089.0,60088.0,3.03]
[1726681497465,0.169419,60089.0,60088.0,3.03]
[1726681497695,0.19553013,60089.0,60088.0,3.03]
[1726681498067,0.19635113,60089.0,60088.0,3.03]
[1726681498293,0.52919013,60089.0,60088.0,3.03]
[1726681498502,0.503079,60089.0,60088.0,3.03]
[1726681500070,0.835918,60089.0,60088.0,3.03]
[1726681500290,0.503079,60089.0,60088.0,3.03]
[1726681500514,0.003821,60089.0,60088.0,3.256142]
[1726681501400,0.003821,60089.0,60088.0,3.25779013]
[1726681501641,0.003821,60089.0,60088.0,3.92348013]
[1726681502073,0.003821,60089.0,60088.0,3.59063513]
[1726681502287,0.003821,60089.0,60088.0,3.588987]
[1726681502962,0.003821,60089.0,60088.0,4.41773067]
[1726681503178,0.003821,60089.0,60088.0,4.08488567]
[1726681503399,0.003821,60089.0,60088.0,4.41773067]
[1726681503877,0.003821,60089.0,60088.0,3.588987]
[1726681504078,0.000821,60089.0,60088.0,3.588987]
[1726681504496,0.000821,60089.0,60088.0,3.590987]
[1726681504707,0.000821,60089.0,60088.0,3.09172]
[1726681504920,0.000821,60089.0,60088.0,3.258142]
[1726681505131,0.000821,60089.0,60088.0,3.032]
[1726681505348,0.16724,60089.0,60088.0,3.002]
[1726681505533,0.000821,60089.0,60088.0,3.09172]
[1726681505778,0.000821,60089.0,60088.0,3.256142]
[1726681505991,0.000821,60089.0,60088.0,3.588987]
[1726681506419,0.000821,60089.0,60088.0,3.921832]
[1726681507480,0.004821,60089.0,60088.0,3.921832]